fUSD/lending_fUSD_20260606
["ID","MTS","AMOUNT","RATE_DAILY","PERIOD"]
[424299914,1780757450000,-500.0,0.00016329,2]
[424299920,1780757450000,-152.77,0.000164,2]
[424299921,1780757450000,-2887.13,0.000164,2]
[424299919,1780757450000,-2863.99,0.000164,2]
[424299917,1780757450000,-1083.41442062,0.00016357,2]
[424299922,1780757450000,-1083.41442062,0.00016418,2]
[424299933,1780757450000,-206.47350131,0.00016438,2]
[424299924,1780757450000,-1083.41442062,0.00016435,2]
[424299925,1780757450000,-300.0,0.00016437,2]
[424299932,1780757450000,-203.7423943,0.00016438,2]
[424299929,1780757450000,-4204.8,0.00016438,2]
[424299928,1780757450000,-300.0,0.00016437,2]
[424299927,1780757450000,-300.0,0.00016437,2]
[424299931,1780757450000,-1214.75,0.00016438,2]
[424299930,1780757450000,-652.35,0.00016438,2]
[424299935,1780757450000,-152.844604,0.00016438,2]
[424299910,1780757450000,-660.89103895,0.000162,2]
[424299923,1780757450000,-500.0,0.00016425,2]
[424299906,1780757450000,-9999.99,0.00016116,2]
[424299895,1780757450000,-10000.0,0.00015973,2]
[424299912,1780757450000,-1138.35996658,0.000163,2]
[424299887,1780757450000,-10089.47184851,0.000157,2]
[424299888,1780757450000,-500.0,0.00015713,2]
[424299889,1780757450000,-1138.35996658,0.000158,2]
[424299890,1780757450000,-10089.47184851,0.000158,2]
[424299892,1780757450000,-1798.80895522,0.00015814,2]
[424299893,1780757450000,-462.54122938,0.00015912,10]
[424299891,1780757450000,-2275.15039142,0.00015807,2]
[424299896,1780757450000,-299.96505764,0.00015987,2]
[424299894,1780757450000,-500.0,0.00015973,2]
[424299899,1780757450000,-1138.35996658,0.00016,2]
[424299900,1780757450000,-10089.47184851,0.00016,2]
[424299898,1780757450000,-779.1455433,0.00016,2]
[424299897,1780757450000,-242.529352,0.00015999,2]
[424299901,1780757450000,-300.0,0.00016,2]
[424299902,1780757450000,-160.0,0.00016,3]
[424299904,1780757450000,-660.89103895,0.00016,2]
[424299908,1780757450000,-1138.35996658,0.000162,2]
[424299903,1780757450000,-215.80795776,0.00016,3]
[424299913,1780757450000,-10089.47184851,0.000163,2]
[424299905,1780757450000,-660.89103895,0.000161,2]
[424299909,1780757450000,-10089.47184851,0.000162,2]
[424299907,1780757450000,-1125.0,0.00016137,2]
[424299934,1780757450000,-151.0,0.00016438,2]
[424299937,1780757450000,-151.0,0.00016438,2]
[424299945,1780757450000,-151.0,0.00016438,2]
[424299963,1780757450000,-194.712125,0.00016438,2]
[424299969,1780757450000,-194.712125,0.00016438,2]
[424299962,1780757450000,-194.712125,0.00016438,2]
[424299961,1780757450000,-194.712125,0.00016438,2]
[424299960,1780757450000,-194.712125,0.00016438,2]
[424299964,1780757450000,-194.712125,0.00016438,2]
[424299966,1780757450000,-194.712125,0.00016438,2]
[424299967,1780757450000,-194.712125,0.00016438,2]
[424299973,1780757450000,-2532.201305,0.00016438,2]
[424299971,1780757450000,-2532.201305,0.00016438,2]
[424299974,1780757450000,-2532.201305,0.00016438,2]
[424299972,1780757450000,-2532.201305,0.00016438,2]
[424299975,1780757450000,-2532.201305,0.00016438,2]
[424299978,1780757450000,-2532.201305,0.00016438,2]
[424299982,1780757450000,-2532.201305,0.00016438,2]
[424299977,1780757450000,-2532.201305,0.00016438,2]
[424299979,1780757450000,-2532.201305,0.00016438,2]
[424299980,1780757450000,-2532.201305,0.00016438,2]
[424299981,1780757450000,-2532.201305,0.00016438,2]
[424299983,1780757450000,-2532.201305,0.00016438,2]
[424299926,1780757450000,-300.0,0.00016437,2]
[424299965,1780757450000,-194.712125,0.00016438,2]
[424299970,1780757450000,-2532.201305,0.00016438,2]
[424299976,1780757450000,-2532.201305,0.00016438,2]
[424299968,1780757450000,-194.712125,0.00016438,2]
[424299944,1780757450000,-151.0,0.00016438,2]
[424299959,1780757450000,-194.712125,0.00016438,2]
[424299938,1780757450000,-151.0,0.00016438,2]
[424299946,1780757450000,-151.0,0.00016438,2]
[424299941,1780757450000,-151.0,0.00016438,2]
[424299947,1780757450000,-151.0,0.00016438,2]
[424299936,1780757450000,-151.0,0.00016438,2]
[424299940,1780757450000,-151.0,0.00016438,2]
[424299943,1780757450000,-151.0,0.00016438,2]
[424299942,1780757450000,-151.0,0.00016438,2]
[424299939,1780757450000,-151.0,0.00016438,2]
[424299953,1780757450000,-900.0,0.00016438,2]
[424299950,1780757450000,-151.0,0.00016438,2]
[424299951,1780757450000,-151.0,0.00016438,2]
[424299949,1780757450000,-151.0,0.00016438,2]
[424299952,1780757450000,-273.641047,0.00016438,2]
[424299955,1780757450000,-194.712125,0.00016438,2]
[424299957,1780757450000,-194.712125,0.00016438,2]
[424299958,1780757450000,-194.712125,0.00016438,2]
[424299956,1780757450000,-194.712125,0.00016438,2]
[424299954,1780757450000,-194.712125,0.00016438,2]
[424299948,1780757450000,-151.0,0.00016438,2]
[424300021,1780757451000,-1083.41442062,0.00016819,2]
[424300015,1780757451000,-2000.0,0.0001679,2]
[424300023,1780757451000,-1934.38338736,0.0001691,2]
[424300025,1780757451000,-1178.31,0.00016932,2]
[424300019,1780757451000,-196.0,0.000168,3]
[424300018,1780757451000,-215.76098237,0.000168,2]
[424300016,1780757451000,-500.0,0.0001679,2]
[424300027,1780757451000,-1083.41442062,0.00016988,2]
[424300017,1780757451000,-10089.47184851,0.000168,2]
[424300010,1780757451000,-1083.41442062,0.0001675,2]
[424300026,1780757451000,-1125.0,0.00016986,2]
[424300020,1780757451000,-1083.41442062,0.00016805,2]
[424300024,1780757451000,-632.78,0.00016931,2]
[424300033,1780757451000,-10089.47184851,0.000171,2]
[424300029,1780757451000,-1083.41442062,0.00017021,2]
[424300039,1780757451000,-1083.41442062,0.0001724,2]
[424300041,1780757451000,-1083.41442062,0.00017274,2]
[424300040,1780757451000,-1083.41442062,0.00017245,2]
[424300028,1780757451000,-10089.47184851,0.00017,2]
[424300035,1780757451000,-1083.41442062,0.00017159,2]
[424300030,1780757451000,-249.0,0.0001705,2]
[424300034,1780757451000,-1083.41442062,0.00017141,2]
[424300038,1780757451000,-1083.41442062,0.00017198,2]
[424300036,1780757451000,-1083.41442062,0.00017163,2]
[424300037,1780757451000,-1083.41442062,0.00017183,2]
[424300014,1780757451000,-1083.41442062,0.00016782,2]
[424300022,1780757451000,-500.0,0.00016877,2]
[424300013,1780757451000,-1083.41442062,0.00016769,2]
[424299988,1780757451000,-6623.63161413,0.000165,2]
[424300011,1780757451000,-1083.41442062,0.00016753,2]
[424299984,1780757451000,-2532.201305,0.00016438,2]
[424299987,1780757451000,-1083.41442062,0.0001649,2]
[424299986,1780757451000,-179.2476288,0.00016448,2]
[424299985,1780757451000,-2532.201305,0.00016438,2]
[424299989,1780757451000,-1000.0,0.000165,2]
[424299990,1780757451000,-1138.35996658,0.000165,2]
[424299992,1780757451000,-639.24,0.000165,7]
[424299991,1780757451000,-10089.47184851,0.000165,2]
[424299993,1780757451000,-1083.41442062,0.00016501,2]
[424299996,1780757451000,-2000.0,0.00016533,2]
[424299995,1780757451000,-1083.41442062,0.00016519,2]
[424300031,1780757451000,-1083.41442062,0.00017068,2]
[424300012,1780757451000,-278.82,0.00016767,2]
[424299994,1780757451000,-1083.41442062,0.00016513,2]
[424299998,1780757451000,-1138.35996658,0.000166,2]
[424300001,1780757451000,-1083.41442062,0.00016603,2]
[424300002,1780757451000,-176.72228863,0.00016645,2]
[424300000,1780757451000,-1215.51,0.000166,2]
[424300003,1780757451000,-1083.41442062,0.00016671,2]
[424299999,1780757451000,-10089.47184851,0.000166,2]
[424300004,1780757451000,-1083.41442062,0.00016676,2]
[424300006,1780757451000,-168.33,0.00016712,2]
[424300005,1780757451000,-150.0,0.00016684,3]
[424300007,1780757451000,-1083.41442062,0.00016715,2]
[424300008,1780757451000,-1083.41442062,0.00016726,2]
[424300009,1780757451000,-188.36086472,0.00016732,2]
[424299997,1780757451000,-1083.41442062,0.00016591,2]
[424300032,1780757451000,-1083.41442062,0.00017099,2]
[424300084,1780757451000,-151.0,0.00018006,2]
[424300044,1780757451000,-165.347,0.00017323,2]
[424300075,1780757451000,-200.0,0.00017918,2]
[424300076,1780757451000,-164.0,0.00017918,2]
[424300073,1780757451000,-200.0,0.00017918,2]
[424300079,1780757451000,-10089.47184851,0.00018,2]
[424300087,1780757451000,-151.0,0.00018006,2]
[424300078,1780757451000,-1878.97977684,0.00018,2]
[424300088,1780757451000,-151.0,0.00018006,2]
[424300089,1780757451000,-151.0,0.00018006,2]
[424300080,1780757451000,-1292.16484347,0.00018,2]
[424300081,1780757451000,-350.0,0.00018,2]
[424300082,1780757451000,-200.0,0.00018006,2]
[424300086,1780757451000,-151.0,0.00018006,2]
[424300074,1780757451000,-200.0,0.00017918,2]
[424300083,1780757451000,-151.0,0.00018006,2]
[424300090,1780757451000,-151.0,0.00018006,2]
[424300093,1780757451000,-151.0,0.00018006,2]
[424300092,1780757451000,-500.0,0.00018006,2]
[424300099,1780757451000,-151.0,0.00018006,2]
[424300095,1780757451000,-151.0,0.00018006,2]
[424300094,1780757451000,-500.0,0.00018006,2]
[424300100,1780757451000,-151.0,0.00018006,2]
[424300101,1780757451000,-500.0,0.00018006,2]
[424300091,1780757451000,-2080.17592889,0.00018006,2]
[424300096,1780757451000,-151.0,0.00018006,2]
[424300097,1780757451000,-151.0,0.00018006,2]
[424300098,1780757451000,-500.0,0.00018006,2]
[424300085,1780757451000,-151.0,0.00018006,2]
[424300072,1780757451000,-200.0,0.00017918,2]
[424300042,1780757451000,-1083.41442062,0.00017287,2]
[424300071,1780757451000,-200.0,0.00017918,2]
[424300070,1780757451000,-200.0,0.00017918,2]
[424300045,1780757451000,-3554.0,0.00017323,2]
[424300043,1780757451000,-10089.47184851,0.000173,2]
[424300051,1780757451000,-419.0,0.00017323,2]
[424300046,1780757451000,-1358.0,0.00017323,2]
[424300048,1780757451000,-1274.0,0.00017323,2]
[424300053,1780757451000,-500.0,0.00017329,2]
[424300050,1780757451000,-150.0,0.00017323,2]
[424300049,1780757451000,-1227.0,0.00017323,2]
[424300047,1780757451000,-382.0,0.00017323,2]
[424300055,1780757451000,-1141.86,0.00017425,2]
[424300058,1780757451000,-2005.9555727,0.00017458,2]
[424300057,1780757451000,-169.65,0.00017425,2]
[424300052,1780757451000,-3642.0,0.00017323,2]
[424300059,1780757451000,-10089.47184851,0.000175,2]
[424300060,1780757451000,-172.57279179,0.000175,2]
[424300067,1780757451000,-200.0,0.00017918,2]
[424300066,1780757451000,-1125.0,0.0001788,2]
[424300068,1780757451000,-200.0,0.00017918,2]
[424300064,1780757451000,-10089.47184851,0.000178,2]
[424300061,1780757451000,-794.10843908,0.000177,2]
[424300077,1780757451000,-1151.34550738,0.00018,2]
[424300069,1780757451000,-200.0,0.00017918,2]
[424300062,1780757451000,-10089.47184851,0.000177,2]
[424300056,1780757451000,-169.65,0.00017425,2]
[424300054,1780757451000,-613.21,0.00017424,2]
[424300065,1780757451000,-200.0,0.00017856,2]
[424300063,1780757451000,-500.0,0.00017781,2]
[424300141,1780757452000,-693.04560568,0.000184,2]
[424300148,1780757452000,-2157.14243826,0.00018554,2]
[424300143,1780757452000,-1151.34550738,0.000185,2]
[424300142,1780757452000,-4204.8,0.0001841,2]
[424300140,1780757452000,-1292.16484347,0.000184,2]
[424300137,1780757452000,-1151.34550738,0.000184,2]
[424300139,1780757452000,-10089.47184851,0.000184,2]
[424300138,1780757452000,-1878.97977684,0.000184,2]
[424300136,1780757452000,-500.0,0.00018233,2]
[424300133,1780757452000,-1878.97977684,0.000182,2]
[424300147,1780757452000,-151.0,0.00018554,2]
[424300149,1780757452000,-150.0,0.00018575,2]
[424300146,1780757452000,-200.0,0.00018554,2]
[424300157,1780757452000,-1125.0,0.00018821,2]
[424300144,1780757452000,-1878.97977684,0.000185,2]
[424300162,1780757452000,-300.0,0.00018999,2]
[424300151,1780757452000,-10089.47184851,0.000186,2]
[424300152,1780757452000,-1151.34550738,0.000187,2]
[424300161,1780757452000,-1068.98,0.00018904,2]
[424300163,1780757452000,-666.0,0.00018999,2]
[424300150,1780757452000,-150.0,0.00018575,2]
[424300153,1780757452000,-1878.97977684,0.000187,2]
[424300156,1780757452000,-279.78,0.000188,8]
[424300155,1780757452000,-1292.16484347,0.000187,2]
[424300159,1780757452000,-1878.97977684,0.000189,2]
[424300158,1780757452000,-1151.34550738,0.000189,2]
[424300135,1780757452000,-1292.16484347,0.000182,2]
[424300145,1780757452000,-1292.16484347,0.000185,2]
[424300132,1780757452000,-1151.34550738,0.000182,2]
[424300114,1780757452000,-500.0,0.00018006,2]
[424300131,1780757452000,-1215.51,0.000181,2]
[424300102,1780757452000,-151.0,0.00018006,2]
[424300154,1780757452000,-10089.47184851,0.000187,2]
[424300110,1780757452000,-151.0,0.00018006,2]
[424300103,1780757452000,-151.0,0.00018006,2]
[424300111,1780757452000,-500.0,0.00018006,2]
[424300104,1780757452000,-500.0,0.00018006,2]
[424300109,1780757452000,-151.0,0.00018006,2]
[424300106,1780757452000,-151.0,0.00018006,2]
[424300105,1780757452000,-151.0,0.00018006,2]
[424300108,1780757452000,-500.0,0.00018006,2]
[424300107,1780757452000,-151.0,0.00018006,2]
[424300118,1780757452000,-151.0,0.00018006,2]
[424300116,1780757452000,-500.0,0.00018006,2]
[424300134,1780757452000,-10089.47184851,0.000182,2]
[424300113,1780757452000,-151.0,0.00018006,2]
[424300117,1780757452000,-151.0,0.00018006,2]
[424300123,1780757452000,-151.0,0.00018006,2]
[424300120,1780757452000,-151.0,0.00018006,2]
[424300115,1780757452000,-151.0,0.00018006,2]
[424300121,1780757452000,-151.0,0.00018006,2]
[424300126,1780757452000,-151.0,0.00018006,2]
[424300125,1780757452000,-151.0,0.00018006,2]
[424300124,1780757452000,-151.0,0.00018006,2]
[424300122,1780757452000,-500.0,0.00018006,2]
[424300128,1780757452000,-150.0,0.00018064,2]
[424300127,1780757452000,-150.0,0.00018064,2]
[424300129,1780757452000,-227.0,0.00018064,2]
[424300130,1780757452000,-1105.42,0.00018082,2]
[424300119,1780757452000,-500.0,0.00018006,2]
[424300112,1780757452000,-151.0,0.00018006,2]
[424300160,1780757452000,-1292.16484347,0.000189,2]
[424300164,1780757452000,-300.0,0.00018999,2]
[424300198,1780757452000,-192.967881,0.00019178,2]
[424300196,1780757452000,-192.967881,0.00019178,2]
[424300194,1780757452000,-282.043032,0.00019178,2]
[424300195,1780757452000,-192.967881,0.00019178,2]
[424300204,1780757452000,-192.967881,0.00019178,2]
[424300203,1780757452000,-192.967881,0.00019178,2]
[424300206,1780757452000,-192.967881,0.00019178,2]
[424300214,1780757452000,-342.548366,0.00019178,2]
[424300215,1780757452000,-342.548366,0.00019178,2]
[424300205,1780757452000,-192.967881,0.00019178,2]
[424300207,1780757452000,-192.967881,0.00019178,2]
[424300208,1780757452000,-192.967881,0.00019178,2]
[424300209,1780757452000,-192.967881,0.00019178,2]
[424300199,1780757452000,-192.967881,0.00019178,2]
[424300210,1780757452000,-192.967881,0.00019178,2]
[424300213,1780757452000,-342.548366,0.00019178,2]
[424300211,1780757452000,-342.548366,0.00019178,2]
[424300217,1780757452000,-342.548366,0.00019178,2]
[424300218,1780757452000,-342.548366,0.00019178,2]
[424300219,1780757452000,-342.548366,0.00019178,2]
[424300216,1780757452000,-342.548366,0.00019178,2]
[424300220,1780757452000,-342.548366,0.00019178,2]
[424300222,1780757452000,-342.548366,0.00019178,2]
[424300225,1780757452000,-342.548366,0.00019178,2]
[424300226,1780757452000,-342.548366,0.00019178,2]
[424300221,1780757452000,-342.548366,0.00019178,2]
[424300165,1780757452000,-300.0,0.00018999,2]
[424300224,1780757452000,-342.548366,0.00019178,2]
[424300212,1780757452000,-342.548366,0.00019178,2]
[424300197,1780757452000,-192.967881,0.00019178,2]
[424300223,1780757452000,-342.548366,0.00019178,2]
[424300192,1780757452000,-151.0,0.00019178,2]
[424300193,1780757452000,-151.0,0.00019178,2]
[424300167,1780757452000,-300.0,0.00018999,2]
[424300176,1780757452000,-2236.95670847,0.00019102,2]
[424300166,1780757452000,-300.0,0.00018999,2]
[424300169,1780757452000,-6326.00199692,0.00019,2]
[424300168,1780757452000,-300.0,0.00018999,2]
[424300172,1780757452000,-1878.97977684,0.000191,2]
[424300170,1780757452000,-400399.81791939,0.00019,2]
[424300173,1780757452000,-1292.16484347,0.000191,2]
[424300171,1780757452000,-1151.34550738,0.000191,2]
[424300174,1780757452000,-200.0,0.00019102,2]
[424300178,1780757452000,-300.0,0.00019177,2]
[424300188,1780757452000,-151.0,0.00019178,2]
[424300177,1780757452000,-300.0,0.00019177,2]
[424300175,1780757452000,-151.0,0.00019102,2]
[424300180,1780757452000,-300.0,0.00019177,2]
[424300182,1780757452000,-151.0,0.00019178,2]
[424300202,1780757452000,-192.967881,0.00019178,2]
[424300191,1780757452000,-151.0,0.00019178,2]
[424300189,1780757452000,-151.0,0.00019178,2]
[424300200,1780757452000,-192.967881,0.00019178,2]
[424300190,1780757452000,-151.0,0.00019178,2]
[424300201,1780757452000,-192.967881,0.00019178,2]
[424300186,1780757452000,-151.0,0.00019178,2]
[424300187,1780757452000,-151.0,0.00019178,2]
[424300184,1780757452000,-151.0,0.00019178,2]
[424300183,1780757452000,-151.0,0.00019178,2]
[424300181,1780757452000,-20453.62,0.00019178,2]
[424300179,1780757452000,-300.0,0.00019177,2]
[424300185,1780757452000,-151.0,0.00019178,2]
[424300272,1780757453000,-408.0,0.0002,2]
[424300269,1780757453000,-4263.0,0.0002,2]
[424300265,1780757453000,-698.0,0.0002,2]
[424300266,1780757453000,-1042.263907,0.0002,2]
[424300258,1780757453000,-300.0,0.00019999,2]
[424300257,1780757453000,-666.0,0.00019999,2]
[424300259,1780757453000,-300.0,0.00019999,2]
[424300261,1780757453000,-600.37462754,0.0002,2]
[424300255,1780757453000,-216.75575915,0.00019998,2]
[424300268,1780757453000,-1995.41551638,0.0002,2]
[424300264,1780757453000,-1317.0,0.0002,2]
[424300260,1780757453000,-300.0,0.00019999,2]
[424300274,1780757453000,-936.0,0.0002,2]
[424300270,1780757453000,-801.0,0.0002,2]
[424300271,1780757453000,-1747.0,0.0002,2]
[424300273,1780757453000,-400.0,0.0002,2]
[424300276,1780757453000,-14184.8,0.0002,2]
[424300275,1780757453000,-1092.0,0.0002,2]
[424300278,1780757453000,-154.50761025,0.0002,20]
[424300288,1780757453000,-1995.41551638,0.000202,2]
[424300277,1780757453000,-675.0,0.0002,2]
[424300279,1780757453000,-2972.0,0.0002,2]
[424300280,1780757453000,-4110.0,0.0002,2]
[424300284,1780757453000,-404.0,0.00020132,2]
[424300282,1780757453000,-1576.68,0.0002,2]
[424300256,1780757453000,-300.0,0.00019999,2]
[424300267,1780757453000,-785.0,0.0002,2]
[424300254,1780757453000,-1146.72507585,0.000199,3]
[424300240,1780757453000,-1878.97977684,0.000195,2]
[424300251,1780757453000,-1215.51,0.000197,2]
[424300285,1780757453000,-200.0,0.00020198,2]
[424300227,1780757453000,-1151.34550738,0.000193,2]
[424300239,1780757453000,-1151.34550738,0.000195,2]
[424300229,1780757453000,-1292.16484347,0.000193,2]
[424300228,1780757453000,-1878.97977684,0.000193,2]
[424300232,1780757453000,-1548.0,0.00019418,2]
[424300231,1780757453000,-1548.0,0.00019418,2]
[424300236,1780757453000,-152.0,0.00019418,2]
[424300230,1780757453000,-1548.0,0.00019418,2]
[424300235,1780757453000,-1548.0,0.00019418,2]
[424300233,1780757453000,-1548.0,0.00019418,2]
[424300237,1780757453000,-152.0,0.00019418,2]
[424300234,1780757453000,-1548.0,0.00019418,2]
[424300238,1780757453000,-225.903832,0.00019452,2]
[424300243,1780757453000,-500.0,0.00019591,2]
[424300242,1780757453000,-2000.0,0.00019591,2]
[424300241,1780757453000,-1292.16484347,0.000195,2]
[424300249,1780757453000,-1878.97977684,0.000197,2]
[424300248,1780757453000,-1151.34550738,0.000197,2]
[424300246,1780757453000,-151.0,0.0001965,2]
[424300244,1780757453000,-300.0,0.00019599,2]
[424300247,1780757453000,-2319.72410669,0.0001965,2]
[424300245,1780757453000,-200.0,0.0001965,2]
[424300250,1780757453000,-1292.16484347,0.000197,2]
[424300252,1780757453000,-1125.0,0.00019812,2]
[424300262,1780757453000,-4082.0,0.0002,2]
[424300263,1780757453000,-766.0,0.0002,2]
[424300253,1780757453000,-738.33,0.00019818,2]
[424300283,1780757453000,-1032.54,0.00020055,2]
[424300316,1780757453000,-300.0,0.00020999,2]
[424300281,1780757453000,-948.0,0.0002,2]
[424300315,1780757453000,-300.0,0.00020999,2]
[424300319,1780757453000,-1042.263907,0.00021,2]
[424300320,1780757453000,-698.0,0.00021,2]
[424300321,1780757453000,-785.0,0.00021,2]
[424300322,1780757453000,-1241.90474121,0.00021,2]
[424300333,1780757453000,-6111.0,0.00021,2]
[424300324,1780757453000,-2997.52471814,0.00021,2]
[424300336,1780757453000,-675.0,0.00021,2]
[424300329,1780757453000,-408.0,0.00021,2]
[424300335,1780757453000,-1092.0,0.00021,2]
[424300326,1780757453000,-4263.0,0.00021,2]
[424300328,1780757453000,-1747.0,0.00021,2]
[424300344,1780757453000,-28382.22,0.00021273,2]
[424300334,1780757453000,-936.0,0.00021,2]
[424300325,1780757453000,-1995.41551638,0.00021,2]
[424300332,1780757453000,-15000.0,0.00021,2]
[424300330,1780757453000,-15000.0,0.00021,2]
[424300327,1780757453000,-801.0,0.00021,2]
[424300339,1780757453000,-948.0,0.00021,2]
[424300337,1780757453000,-2972.0,0.00021,2]
[424300340,1780757453000,-2000.0,0.00021094,7]
[424300343,1780757453000,-278.82,0.00021205,2]
[424300338,1780757453000,-4110.0,0.00021,2]
[424300342,1780757453000,-1995.41551638,0.000212,2]
[424300345,1780757453000,-200.0,0.00021287,2]
[424300287,1780757453000,-2405.55389863,0.00020198,2]
[424300331,1780757453000,-6111.0,0.00021,2]
[424300318,1780757453000,-4082.0,0.00021,2]
[424300341,1780757453000,-1241.90474121,0.000212,2]
[424300317,1780757453000,-300.0,0.00020999,2]
[424300286,1780757453000,-151.0,0.00020198,2]
[424300290,1780757453000,-3554.0,0.00020323,2]
[424300289,1780757453000,-1365.0,0.00020307,2]
[424300291,1780757453000,-1358.0,0.00020323,2]
[424300292,1780757453000,-382.0,0.00020323,2]
[424300296,1780757453000,-419.0,0.00020323,2]
[424300294,1780757453000,-1227.0,0.00020323,2]
[424300323,1780757453000,-15000.0,0.00021,2]
[424300299,1780757453000,-1995.41551638,0.000204,2]
[424300297,1780757453000,-3642.0,0.00020323,2]
[424300295,1780757453000,-150.0,0.00020323,2]
[424300293,1780757453000,-1274.0,0.00020323,2]
[424300301,1780757453000,-150.0,0.0002058,2]
[424300298,1780757453000,-4204.8,0.00020381,2]
[424300300,1780757453000,-350.0,0.00020536,3]
[424300314,1780757453000,-345.24977454,0.00020989,2]
[424300302,1780757453000,-150.0,0.0002058,2]
[424300313,1780757453000,-532.7,0.000209,7]
[424300312,1780757453000,-299.386,0.00020863,2]
[424300306,1780757453000,-200.0,0.00020746,2]
[424300310,1780757453000,-1125.0,0.00020855,2]
[424300308,1780757453000,-2494.55939288,0.00020746,2]
[424300309,1780757453000,-1995.41551638,0.000208,2]
[424300305,1780757453000,-500.0,0.00020685,2]
[424300304,1780757453000,-1995.41551638,0.000206,2]
[424300303,1780757453000,-150.44842242,0.0002058,2]
[424300311,1780757453000,-6161.896,0.00020863,2]
[424300307,1780757453000,-151.0,0.00020746,2]
[424300390,1780757454000,-3041.2,0.00022,2]
[424300384,1780757454000,-408.0,0.00022,2]
[424300385,1780757454000,-450.0,0.00022,2]
[424300381,1780757454000,-4263.0,0.00022,2]
[424300382,1780757454000,-801.0,0.00022,2]
[424300378,1780757454000,-1042.263907,0.00022,2]
[424300389,1780757454000,-2972.0,0.00022,2]
[424300379,1780757454000,-698.0,0.00022,2]
[424300376,1780757454000,-500.0,0.00022,3]
[424300377,1780757454000,-4082.0,0.00022,2]
[424300380,1780757454000,-785.0,0.00022,2]
[424300386,1780757454000,-936.0,0.00022,2]
[424300400,1780757454000,-5000.0,0.00022295,2]
[424300387,1780757454000,-1092.0,0.00022,2]
[424300388,1780757454000,-675.0,0.00022,2]
[424300391,1780757454000,-4110.0,0.00022,2]
[424300402,1780757454000,-6952.99847296,0.00022295,2]
[424300394,1780757454000,-1241.90474121,0.000221,2]
[424300395,1780757454000,-300.0,0.00022294,2]
[424300392,1780757454000,-948.0,0.00022,2]
[424300393,1780757454000,-298.5,0.0002205,2]
[424300397,1780757454000,-5000.0,0.00022295,2]
[424300396,1780757454000,-676.50366034,0.00022294,2]
[424300399,1780757454000,-5000.0,0.00022295,2]
[424300375,1780757454000,-500.0,0.00022,3]
[424300383,1780757454000,-1747.0,0.00022,2]
[424300374,1780757454000,-300.0,0.00021999,2]
[424300354,1780757454000,-1215.51,0.000215,2]
[424300373,1780757454000,-300.0,0.00021999,2]
[424300398,1780757454000,-5000.0,0.00022295,2]
[424300347,1780757454000,-151.0,0.00021294,2]
[424300348,1780757454000,-2586.85809042,0.00021294,2]
[424300346,1780757454000,-200.0,0.00021294,2]
[424300358,1780757454000,-1995.41551638,0.000217,2]
[424300350,1780757454000,-1241.90474121,0.000214,2]
[424300351,1780757454000,-1995.41551638,0.000214,2]
[424300349,1780757454000,-1708.05,0.0002137,2]
[424300352,1780757454000,-384.64427042,0.00021445,2]
[424300359,1780757454000,-14184.8,0.0002172,2]
[424300353,1780757454000,-500.0,0.00021479,2]
[424300356,1780757454000,-1000.0,0.000216,2]
[424300372,1780757454000,-200.0,0.00021918,2]
[424300355,1780757454000,-1241.90474121,0.000216,2]
[424300360,1780757454000,-200.0,0.00021842,2]
[424300362,1780757454000,-2682.57183977,0.00021842,2]